bitfinex/quotes_SOLUSD_20240716
["timestamp","ask_amount","ask_price","bid_price","bid_amount"]
[1721116998018,0.7985524,155.45,155.39,15.83]
[1721116998713,6.4338,155.43,155.39,15.83]
[1721116998913,7.2318524,155.45,155.39,15.83]
[1721116999128,7.2318524,155.45,155.4,45.0]
[1721116999827,0.7985524,155.45,155.4,45.0]
[1721117000134,0.7985524,155.45,155.41,1.28689524]
[1721117000322,0.7985524,155.45,155.42,6.6649]
[1721117000516,0.7985524,155.45,155.43,45.0]
[1721117002233,0.7985524,155.45,155.42,6.6649]
[1721117002624,0.7985524,155.45,155.43,45.0]
[1721117005018,6.4334,155.44,155.42,6.6649]
[1721117005237,0.7985524,155.45,155.42,6.6649]
[1721117005427,7.2316524,155.45,155.42,6.6649]
[1721117005922,0.7985524,155.45,155.42,6.6649]
[1721117006230,6.4349,155.41,155.39,15.83]
[1721117006537,0.7985524,155.45,155.32,60.6746]
[1721117006751,6.4364,155.37,155.32,22.3846]
[1721117007047,6.4362,155.37,155.32,22.3846]
[1721117007219,6.4358,155.38,155.32,22.3846]
[1721117007419,6.4354,155.4,155.32,22.3846]
[1721117007647,6.4354,155.4,155.33,1.28744005]
[1721117007829,39.55936231,155.45,155.33,1.28744005]
[1721117008145,0.7985524,155.45,155.34,6.5824]
[1721117008344,6.4344,155.42,155.34,6.5824]
[1721117008542,0.7985524,155.45,155.35,45.0]
[1721117008719,6.4346,155.41,155.35,45.0]
[1721117009220,74.5809524,155.45,155.35,45.0]
[1721117009421,6.4354,155.39,155.35,45.0]
[1721117009722,16.0857,155.42,155.34,6.5824]
[1721117009935,6.4367,155.36,155.32,15.8024]
[1721117010135,6.4362,155.38,155.32,15.8024]
[1721117010446,20.0,155.41,155.32,15.8024]
[1721117010611,6.4365,155.37,155.32,15.8024]
[1721117010815,6.4368,155.36,155.32,15.8024]
[1721117011319,6.73369891,155.42,155.35,38.29]
[1721117011536,0.7985524,155.45,155.36,45.0]
[1721117011747,0.7985524,155.45,155.37,21.6691]
[1721117012060,0.7985524,155.45,155.38,83.29]
[1721117012534,0.7985524,155.45,155.39,1.28669971]
[1721117013342,0.7985524,155.45,155.38,83.29]
[1721117017151,0.7985524,155.45,155.41,38.29]
[1721117017449,38.29,155.59,155.42,46.28643226]
[1721117017653,15.88364449,155.58,155.44,60.9342]
[1721117017850,9.15693774,155.57,155.45,45.0]
[1721117018152,6.429,155.55,155.46,22.6442]
[1721117018324,33.3477524,155.6,155.47,45.0]
[1721117018530,9.15947123,155.59,155.47,45.0]
[1721117018844,6.4287,155.56,155.47,45.0]
[1721117019052,6.4289,155.55,155.47,45.0]
[1721117021755,6.4292,155.54,155.47,45.0]
[1721117022750,6.43,155.52,155.47,45.0]
[1721117023054,6.4296,155.53,155.47,45.0]
[1721117023661,35.408,155.59,155.47,45.0]
[1721117024065,6.4292,155.54,155.47,45.0]
[1721117024575,0.7985524,155.6,155.49,38.29]
[1721117024761,0.7985524,155.6,155.52,38.29]
[1721117025263,0.7985524,155.6,155.53,45.0]
[1721117025638,0.7985524,155.6,155.54,1.28558562]
[1721117026044,0.7985524,155.6,155.53,45.0]
[1721117026247,7.2253524,155.6,155.53,45.0]
[1721117026853,0.7985524,155.6,155.54,1.28571725]
[1721117027051,0.7985524,155.6,155.55,22.1824]
[1721117027252,0.7985524,155.6,155.56,45.0]
[1721117032471,0.7985524,155.6,155.55,22.1824]
[1721117032768,0.7985524,155.6,155.56,45.0]
[1721117034046,0.7985524,155.6,155.55,22.1824]
[1721117036458,0.7985524,155.6,155.56,45.0]
[1721117037155,0.7985524,155.6,155.55,22.1824]
[1721117037576,0.7985524,155.6,155.56,45.0]
[1721117042084,0.7985524,155.6,155.56,46.28544245]
[1721117042682,0.7985524,155.6,155.56,45.0]
[1721117044482,0.7985524,155.6,155.58,38.29]
[1721117044679,0.7985524,155.6,155.59,45.0]
[1721117045779,0.7985524,155.6,155.59,46.28519459]
[1721117045968,0.7985524,155.6,155.59,45.0]
[1721117046488,0.7985524,155.6,155.59,51.1579]
[1721117046681,16.0979,155.73,155.6,15.9818]
[1721117046682,6.4226,155.7,155.6,15.9818]
[1721117046886,6.4229,155.7,155.61,45.0]
[1721117047966,35.4379,155.73,155.61,45.0]
[1721117048168,6.4235,155.68,155.61,45.0]
[1721117048365,35.4379,155.73,155.61,45.0]
[1721117048679,6.4241,155.67,155.6,15.9818]
[1721117048882,6.4241,155.67,155.61,45.0]
[1721117049077,6.4235,155.68,155.61,46.28508693]
[1721117049388,6.4235,155.68,155.61,45.0]
[1721117049611,6.424,155.67,155.61,45.0]
[1721117049771,6.424,155.67,155.61,46.28508659]
[1721117049973,19.34,155.7,155.6,15.9818]
[1721117050182,16.0565,155.71,155.6,15.9818]
[1721117050183,6.4247,155.65,155.6,15.9818]
[1721117050378,6.4242,155.66,155.6,15.9818]
[1721117050579,6.4249,155.65,155.6,15.9818]
[1721117051195,6.4243,155.66,155.6,15.9818]
[1721117051804,35.3965,155.71,155.6,15.9818]
[1721117052101,39.34,155.7,155.6,15.9818]
[1721117052311,20.0,155.7,155.6,15.9818]
[1721117052603,20.0,155.7,155.61,45.0]
[1721117053105,6.4234,155.68,155.61,45.0]
[1721117053605,6.4254,155.64,155.6,15.9818]
[1721117054180,6.4247,155.65,155.6,15.9818]
[1721117054397,16.0572,155.7,155.6,15.9818]
[1721117054575,6.4239,155.67,155.6,15.9818]
[1721117054779,6.4243,155.66,155.6,15.9818]
[1721117054980,6.4243,155.66,155.6,17.26692077]
[1721117055277,6.4238,155.67,155.6,15.9818]
[1721117055479,6.4238,155.67,155.61,45.0]
[1721117056698,16.0572,155.7,155.61,45.0]
[1721117056699,35.3972,155.7,155.61,45.0]
[1721117056899,35.3972,155.7,155.6,15.9818]
[1721117057099,20.0,155.69,155.6,15.9818]
[1721117057717,6.4243,155.66,155.6,15.9818]
[1721117058209,6.4247,155.65,155.61,19.06]
[1721117058384,20.0,155.69,155.61,19.06]
[1721117058385,6.4253,155.64,155.61,19.06]
[1721117058586,19.06,155.66,155.61,19.06]
[1721117058793,19.06,155.67,155.6,15.9818]
[1721117059006,6.4243,155.66,155.61,19.06]
[1721117059305,19.06,155.67,155.61,19.06]
[1721117059502,6.4243,155.66,155.61,19.06]
[1721117060006,6.4254,155.64,155.6,15.9818]
[1721117060211,25.4847,155.65,155.6,15.9818]
[1721117060412,6.4247,155.65,155.6,35.0418]
[1721117060707,25.4843,155.66,155.6,35.0418]
[1721117060900,6.4243,155.66,155.6,35.0418]
[1721117061104,25.4843,155.66,155.6,35.0418]
[1721117061410,25.4843,155.66,155.61,19.06]
[1721117063111,6.4246,155.65,155.61,19.06]
[1721117063307,26.4231,155.69,155.62,19.06]
[1721117063610,25.4837,155.68,155.62,19.06]
[1721117063915,25.4837,155.68,155.63,19.06]
[1721117064090,20.0,155.69,155.6,15.9818]
[1721117064294,6.4246,155.66,155.62,19.06]
[1721117064689,25.4838,155.67,155.62,19.06]
[1721117065309,6.4245,155.66,155.62,19.06]
[1721117065498,19.06,155.67,155.62,19.06]
[1721117065917,6.4243,155.66,155.62,19.06]
[1721117066116,6.4243,155.66,155.6,15.9818]
[1721117066117,25.4843,155.66,155.6,15.9818]
[1721117066308,25.4843,155.66,155.61,19.06]
[1721117067393,19.06,155.66,155.61,19.06]
[1721117067795,6.4243,155.66,155.62,19.06]
[1721117068095,35.3995,155.68,155.59,6.1579]
[1721117068417,35.3995,155.68,155.56,35.4992]
[1721117068418,25.4863,155.61,155.56,35.4992]
[1721117068602,6.4267,155.6,155.56,16.4392]
[1721117068915,25.4863,155.61,155.56,35.4992]
[1721117069222,19.06,155.61,155.56,35.4992]
[1721117069399,25.4863,155.61,155.56,35.4992]
[1721117069601,19.06,155.61,155.56,35.4992]
[1721117070012,15.2817,155.66,155.56,16.4392]
[1721117070193,26.4246,155.65,155.59,19.06]
[1721117070395,19.06,155.64,155.59,19.06]
[1721117070601,6.4246,155.65,155.59,19.06]
[1721117070814,6.4246,155.66,155.61,19.06]
[1721117071318,19.06,155.66,155.61,19.06]
[1721117072020,25.4846,155.66,155.61,19.06]
[1721117072193,6.4246,155.66,155.56,16.4392]
[1721117072395,6.4246,155.66,155.57,46.28521714]
[1721117072617,6.4246,155.65,155.57,45.0]
[1721117073001,6.4243,155.66,155.57,45.0]
[1721117073199,6.4239,155.67,155.59,6.0864]
[1721117073514,16.0525,155.74,155.61,15.5656]
[1721117073819,16.0525,155.74,155.62,45.0]
[1721117073820,6.4226,155.7,155.62,45.0]
[1721117074128,6.4226,155.7,155.63,1.28489174]
[1721117074514,6.4226,155.7,155.62,45.0]
[1721117075105,6.4226,155.7,155.63,1.28482876]
[1721117075708,6.4226,155.7,155.64,6.0731]
[1721117076815,6.4226,155.7,155.66,4.66813102]
[1721117077514,6.4221,155.72,155.66,4.66813102]
[1721117077704,16.1267,155.75,155.66,4.66813102]
[1721117077904,20.0,155.74,155.66,4.66813102]
[1721117079009,6.4226,155.7,155.66,4.66813102]
[1721117079801,20.0,155.74,155.67,16.5368]
[1721117080018,20.0,155.75,155.67,16.5368]
[1721117080212,6.4219,155.72,155.67,16.5368]
[1721117080602,6.4222,155.71,155.67,16.5368]
[1721117081723,6.4222,155.71,155.7,4.66813102]
[1721117082298,6.4221,155.71,155.7,4.66813102]
[1721117083007,6.4221,155.71,155.67,16.5368]
[1721117083214,6.4211,155.74,155.68,6.0405]
[1721117083418,6.4211,155.74,155.69,45.0]
[1721117083633,0.7985524,155.76,155.69,45.0]
[1721117084127,7.2188524,155.76,155.69,45.0]
[1721117084303,7.2188524,155.76,155.71,4.66663204]
[1721117085122,6.4205,155.75,155.71,4.66663204]
[1721117085718,7.2186524,155.76,155.71,4.66663204]
[1721117087628,6.4206,155.75,155.71,4.66663204]
[1721117087844,6.4212,155.74,155.71,4.66663204]
[1721117088639,6.4214,155.73,155.71,4.66663204]
[1721117088843,6.4217,155.72,155.71,4.66663204]
[1721117090209,0.7985524,155.76,155.71,4.66663204]
[1721117090407,6.4214,155.73,155.71,4.66663204]
[1721117090808,6.421,155.74,155.71,4.66663204]
[1721117091247,6.4213,155.73,155.71,4.66663204]
[1721117091536,6.4209,155.74,155.71,4.66663204]
[1721117091733,6.4215,155.73,155.71,4.66663204]
[1721117092040,6.4209,155.75,155.71,4.66663204]
[1721117092332,6.4209,155.74,155.71,4.66663204]
[1721117092535,19.04,155.75,155.71,4.66663204]
[1721117093115,6.4217,155.72,155.71,4.66663204]
[1721117096236,6.4214,155.73,155.71,4.66663204]
[1721117096812,6.4209,155.74,155.71,4.66663204]
[1721117097014,19.8385524,155.76,155.71,4.66663204]
[1721117097315,6.4217,155.72,155.71,4.66663204]
[1721117097515,6.4214,155.73,155.71,4.66663204]
[1721117097732,0.7985524,155.76,155.71,23.70663204]
[1721117097915,19.8385524,155.76,155.71,23.70663204]
[1721117098512,6.4209,155.74,155.71,23.70663204]
[1721117098714,0.7985524,155.76,155.71,23.70663204]
[1721117098914,0.7985524,155.76,155.72,19.04]
[1721117099146,6.4209,155.75,155.72,19.04]
[1721117099346,0.7985524,155.76,155.73,19.04]
[1721117099512,7.2187524,155.76,155.71,4.66663204]
[1721117099717,7.2187524,155.76,155.72,64.04]
[1721117099928,6.4205,155.75,155.71,4.66663204]
[1721117100220,6.4205,155.75,155.72,19.04]
[1721117100544,6.4209,155.74,155.71,4.66663204]
[1721117101320,6.4209,155.74,155.71,23.70663204]
[1721117101519,6.4209,155.74,155.71,4.66663204]
[1721117101745,6.4209,155.74,155.71,23.70663204]
[1721117102611,0.7985524,155.76,155.71,23.70663204]
[1721117102817,6.4205,155.75,155.71,23.70663204]
[1721117103024,0.7985524,155.76,155.71,23.70663204]
[1721117103218,0.7985524,155.76,155.73,19.04]
[1721117103432,0.7985524,155.76,155.71,4.66663204]
[1721117103817,0.7985524,155.76,155.72,45.0]
[1721117104018,0.7985524,155.76,155.73,19.04]
[1721117104319,0.7985524,155.76,155.72,45.0]
[1721117104320,0.7985524,155.76,155.74,19.04]
[1721117106129,0.7985524,155.76,155.71,4.66663204]
[1721117106327,6.4205,155.75,155.71,4.66663204]
[1721117106634,6.4208,155.75,155.71,23.70663204]
[1721117107639,7.2186524,155.76,155.71,23.70663204]
[1721117107818,7.2186524,155.76,155.72,19.04]
[1721117108224,6.4206,155.75,155.72,19.04]
[1721117108427,6.4206,155.75,155.71,23.70663204]
[1721117109442,6.4209,155.74,155.71,23.70663204]
[1721117110346,6.4205,155.75,155.71,23.70663204]
[1721117111732,6.4209,155.74,155.71,4.66663204]
[1721117111933,6.4209,155.74,155.71,23.70663204]
[1721117112141,6.4206,155.75,155.71,23.70663204]
[1721117112721,6.4206,155.75,155.73,4.66663204]
[1721117112932,6.4206,155.75,155.74,4.66663204]
[1721117115244,26.2587524,155.76,155.74,4.66663204]
[1721117115743,0.7985524,155.76,155.74,4.66663204]
[1721117116335,6.4205,155.75,155.74,4.66663204]
[1721117117930,25.4605,155.75,155.74,4.66663204]
[1721117118139,34.62862896,155.75,155.74,4.66663204]
[1721117118342,6.4232,155.69,155.62,22.7111]
[1721117118554,19.04,155.68,155.63,19.04]
[1721117118873,19.04,155.67,155.62,22.7111]
[1721117119033,25.4641,155.67,155.62,22.7111]
[1721117119752,25.4641,155.67,155.62,41.7511]
[1721117119954,6.4241,155.67,155.62,41.7511]
[1721117120545,6.4243,155.66,155.62,41.7511]
[1721117120751,6.4239,155.67,155.62,41.7511]
[1721117120950,19.04,155.66,155.62,22.7111]
[1721117121265,25.4639,155.67,155.62,22.7111]
[1721117121434,25.4639,155.67,155.62,41.7511]
[1721117121627,6.4233,155.69,155.63,19.04]
[1721117121930,6.4233,155.69,155.64,19.04]
[1721117121931,25.4633,155.69,155.64,19.04]
[1721117122165,15.17681831,155.73,155.62,22.7111]
[1721117122449,15.17681831,155.73,155.66,19.04]
[1721117122450,19.04,155.71,155.66,19.04]
[1721117122749,0.7985524,155.76,155.65,6.0142]
[1721117122966,19.8385524,155.76,155.71,19.04]
[1721117123138,6.4209,155.74,155.71,19.04]
[1721117123634,7.2190524,155.76,155.71,19.04]
[1721117123949,6.4206,155.75,155.71,19.04]
[1721117126145,0.7985524,155.76,155.72,19.04]
[1721117126348,7.2186524,155.76,155.69,15.8298]
[1721117126566,7.2186524,155.76,155.7,45.0]
[1721117126855,0.7985524,155.76,155.7,45.0]
[1721117127259,7.2186524,155.76,155.7,45.0]
[1721117127447,0.7985524,155.76,155.7,45.0]
[1721117127850,7.2187524,155.76,155.7,45.0]
[1721117128350,0.7985524,155.76,155.7,45.0]
[1721117128549,7.2188524,155.76,155.7,45.0]
[1721117129643,0.7985524,155.76,155.7,45.0]
[1721117130840,7.2186524,155.76,155.7,45.0]
[1721117131256,0.7985524,155.76,155.7,45.0]
[1721117131940,0.7985524,155.76,155.69,15.8298]
[1721117132141,0.7985524,155.76,155.7,1.2843244]
[1721117132941,0.7985524,155.76,155.69,53.8898]
[1721117133374,0.7985524,155.76,155.7,45.0]
[1721117136845,0.7985524,155.76,155.71,6.5819]
[1721117137045,0.7985524,155.76,155.72,45.0]
[1721117137242,0.7985524,155.76,155.72,83.06]
[1721117137455,0.7985524,155.76,155.73,1.28396814]
[1721117137646,0.7985524,155.76,155.72,83.06]
[1721117138056,0.7985524,155.76,155.73,1.28389009]
[1721117138254,0.7985524,155.76,155.72,83.06]
[1721117141763,0.04047737,155.77,155.75,38.06]
[1721117141969,0.04047737,155.77,155.76,45.0]
[1721117142572,0.04047737,155.77,155.76,46.28348194]
[1721117142870,0.04047737,155.77,155.76,45.0]
[1721117143083,0.04047737,155.77,155.76,46.28342897]
[1721117143766,0.04047737,155.77,155.76,45.0]
[1721117145367,0.04047737,155.77,155.76,46.28371093]
[1721117145669,0.04047737,155.77,155.76,45.0]
[1721117147063,0.04047737,155.77,155.73,22.7899]
[1721117148388,0.04047737,155.77,155.76,19.02]
[1721117148961,0.04047737,155.77,155.76,64.02]
[1721117152777,0.04047737,155.77,155.73,22.7899]
[1721117153071,0.04047737,155.77,155.76,19.02]
[1721117153658,0.04047737,155.77,155.74,19.02]
[1721117153858,6.46057737,155.77,155.68,76.08]
[1721117154059,0.04047737,155.77,155.74,19.02]
[1721117154265,0.04047737,155.77,155.75,19.02]
[1721117154579,0.04047737,155.77,155.76,19.02]
[1721117155669,0.04047737,155.77,155.69,1.28396803]
[1721117155874,0.04047737,155.77,155.75,19.02]
[1721117156580,0.04047737,155.77,155.68,76.08]
[1721117156791,0.04047737,155.77,155.75,19.02]
[1721117156977,6.46027737,155.77,155.66,22.7629]
[1721117157179,6.46027737,155.77,155.74,19.02]
[1721117157484,6.4201,155.76,155.68,76.08]
[1721117157669,6.4201,155.76,155.73,19.02]
[1721117157972,6.4209,155.74,155.66,22.7629]
[1721117158181,6.4213,155.74,155.71,19.02]
[1721117158586,19.02,155.76,155.71,19.02]
[1721117159492,6.4209,155.75,155.71,19.02]
[1721117160069,6.4209,155.75,155.66,22.7629]
[1721117160270,19.02,155.75,155.69,19.02]
[1721117160479,6.4218,155.72,155.66,22.7629]
[1721117160681,6.4222,155.71,155.62,6.6048]
[1721117160885,15.13897737,155.77,155.67,19.02]
[1721117161080,15.13897737,155.77,155.62,6.6048]
[1721117161286,15.13897737,155.77,155.73,19.02]
[1721117161499,15.13897737,155.77,155.68,15.8005]
[1721117161500,0.04047737,155.77,155.69,6.2222]
[1721117161790,6.46017737,155.77,155.73,19.02]
[1721117161988,0.04047737,155.77,155.73,19.02]
[1721117162566,6.46017737,155.77,155.73,19.02]
[1721117163484,6.46017737,155.77,155.74,19.02]
[1721117163485,0.04047737,155.77,155.74,19.02]
[1721117163987,0.04047737,155.77,155.69,6.2222]
[1721117163988,0.04047737,155.77,155.75,20.30412772]
[1721117164189,0.04047737,155.77,155.76,19.02]
[1721117166184,0.04047737,155.77,155.69,6.2222]
[1721117166382,0.04047737,155.77,155.73,19.02]
[1721117166585,19.06047737,155.77,155.7,45.0]
[1721117166782,6.4206,155.75,155.7,45.0]
[1721117166978,6.4201,155.76,155.72,19.02]
[1721117167380,0.04047737,155.77,155.73,19.02]
[1721117167585,0.04047737,155.77,155.74,19.02]
[1721117168197,0.04047737,155.77,155.76,19.02]
[1721117170203,0.04047737,155.77,155.7,45.0]
[1721117170497,0.04047737,155.77,155.72,38.04]
[1721117170790,0.04047737,155.77,155.73,46.28386835]
[1721117171897,0.04047737,155.77,155.73,45.0]
[1721117176097,0.04047737,155.77,155.74,1.28387748]
[1721117176692,0.04047737,155.77,155.73,45.0]
[1721117179188,0.04047737,155.77,155.69,6.2222]
[1721117179392,0.04047737,155.77,155.69,44.2622]
[1721117180507,0.04047737,155.77,155.7,45.0]
[1721117181300,0.04047737,155.77,155.69,44.2622]
[1721117181495,6.46027737,155.77,155.69,44.2622]
[1721117181908,6.4202,155.76,155.69,44.2622]
[1721117182111,6.46017737,155.77,155.69,44.2622]
[1721117183115,6.46017737,155.77,155.7,45.0]
[1721117183489,0.04047737,155.77,155.69,38.04]
[1721117183694,6.4219,155.72,155.65,6.5529]
[1721117183889,6.4219,155.72,155.64,15.3198]
[1721117184101,6.4222,155.71,155.64,15.3198]
[1721117184294,6.4218,155.72,155.64,15.3198]
[1721117184719,16.5652,155.73,155.64,15.3198]
[1721117184894,6.4201,155.76,155.66,38.04]
[1721117185092,16.67937737,155.77,155.67,46.28435438]
[1721117185296,15.58821977,155.76,155.67,51.4048]
[1721117185511,16.67937737,155.77,155.67,51.4048]
[1721117185706,9.16813722,155.76,155.67,51.4048]
[1721117185914,6.4214,155.73,155.67,51.4048]
[1721117186116,16.67937737,155.77,155.67,51.4048]
[1721117186117,6.4209,155.74,155.67,51.4048]
[1721117186335,6.4209,155.74,155.68,1.28389303]
[1721117186836,16.67937737,155.77,155.63,44.2741]
[1721117186837,19.34,155.76,155.63,44.2741]
[1721117187001,6.4222,155.71,155.63,6.2341]
[1721117187714,23.0741,155.7,155.61,38.04]
[1721117188101,6.423,155.69,155.61,38.04]
[1721117188302,6.4234,155.68,155.61,38.04]
[1721117190426,6.423,155.69,155.61,38.04]
[1721117190812,6.4238,155.67,155.61,38.04]
[1721117191008,16.6515,155.7,155.6,15.2349]
[1721117191202,6.423,155.69,155.6,15.2349]
[1721117191625,6.423,155.69,155.61,1.2849057]
[1721117191911,6.4234,155.68,155.61,1.2849057]
[1721117192111,6.424,155.67,155.61,45.0]
[1721117192502,6.424,155.67,155.61,46.28503009]
[1721117193123,6.424,155.67,155.61,45.0]
[1721117193317,6.424,155.67,155.6,15.2349]
[1721117193921,6.4243,155.66,155.59,6.5511]
[1721117194125,6.4243,155.66,155.6,45.0]
[1721117194428,6.4243,155.66,155.56,53.6565]
[1721117194429,6.4242,155.66,155.56,53.6565]
[1721117194633,6.4242,155.66,155.57,21.28518426]
[1721117195624,6.4238,155.67,155.57,21.28518426]
[1721117195820,6.4242,155.66,155.58,45.0]
[1721117196143,6.425,155.65,155.58,0.62487446]
[1721117196313,6.425,155.65,155.56,53.6565]
[1721117196513,4.127,155.69,155.56,53.6565]
[1721117196724,6.4242,155.67,155.56,53.6565]
[1721117197120,4.127,155.69,155.56,15.6165]
[1721117197336,24.127,155.69,155.56,15.6165]
[1721117197532,6.425,155.65,155.57,45.0]
[1721117198044,15.7233,155.64,155.58,1.28527704]
[1721117198237,6.425,155.65,155.55,1.28527966]
[1721117198433,6.425,155.65,155.54,44.598]
[1721117198734,6.4255,155.63,155.54,44.598]
[1721117198909,6.4251,155.64,155.54,44.598]
[1721117199106,6.4251,155.64,155.55,45.0]
[1721117199337,6.4246,155.65,155.56,1.28535077]
[1721117199543,15.7233,155.68,155.56,1.28535077]
[1721117199846,15.7233,155.68,155.57,53.3036]
[1721117200127,15.7233,155.68,155.58,45.0]
[1721117200436,6.4241,155.67,155.59,1.28523201]
[1721117200613,6.4246,155.65,155.58,45.0]
[1721117202817,15.7233,155.68,155.58,45.0]
[1721117203026,15.7233,155.68,155.59,1.28504975]
[1721117203232,22.1467,155.68,155.59,1.28504975]
[1721117203623,6.4226,155.7,155.6,44.2009]
[1721117203933,15.0716,155.72,155.61,45.0]
[1721117204114,21.4933,155.72,155.62,1.28474945]
[1721117204317,21.4937,155.72,155.63,38.04]
[1721117204538,21.4937,155.72,155.64,45.0]
[1721117204712,15.0716,155.72,155.64,45.0]
[1721117204917,6.4223,155.71,155.64,45.0]
[1721117205141,6.4226,155.7,155.64,45.0]
[1721117205344,6.4238,155.67,155.63,16.519]
[1721117205650,6.4234,155.68,155.6,44.2009]
[1721117205834,6.4234,155.68,155.61,45.0]
[1721117206141,6.424,155.67,155.61,45.0]
[1721117206324,6.4234,155.69,155.61,45.0]
[1721117206519,6.4236,155.68,155.61,45.0]
[1721117206726,15.0716,155.72,155.61,45.0]
[1721117206921,6.4238,155.67,155.61,45.0]
[1721117207338,6.4238,155.67,155.6,6.1609]
[1721117207517,6.4243,155.66,155.6,6.1609]
[1721117207723,6.4243,155.66,155.59,16.3241]
[1721117208326,6.4247,155.65,155.59,16.3241]
[1721117208645,6.4247,155.65,155.57,38.04]
[1721117209247,15.0716,155.72,155.6,38.04]
[1721117209451,15.0716,155.72,155.63,44.3509]
[1721117209452,21.4934,155.72,155.63,44.3509]
[1721117209748,6.71871317,155.76,155.65,16.2276]
[1721117209915,15.08777737,155.77,155.66,45.0]
[1721117209916,6.4209,155.74,155.66,45.0]
[1721117210239,21.50777737,155.77,155.67,1.28458047]
[1721117211038,21.50777737,155.77,155.66,83.04]
[1721117211247,15.08777737,155.77,155.66,83.04]
[1721117211618,21.50757737,155.77,155.66,83.04]
[1721117211824,15.08777737,155.77,155.66,83.04]
[1721117212277,6.4205,155.75,155.66,83.04]
[1721117213137,15.08777737,155.77,155.66,83.04]
[1721117213138,6.421,155.74,155.66,83.04]
[1721117213337,6.4205,155.76,155.66,83.04]
[1721117213636,6.4206,155.75,155.66,83.04]
[1721117213835,15.08777737,155.77,155.66,83.04]
[1721117213836,6.4211,155.74,155.66,83.04]
[1721117214231,15.08777737,155.77,155.66,83.04]
[1721117214427,0.04047737,155.77,155.66,83.04]
[1721117214632,0.04047737,155.77,155.7,6.1476]
[1721117214824,0.04047737,155.77,155.7,7.4318608]
[1721117215244,0.04047737,155.77,155.7,6.1476]
[1721117216326,0.04047737,155.77,155.7,7.43189395]
[1721117216836,0.04047737,155.77,155.7,6.1476]
[1721117218428,0.04047737,155.77,155.7,7.43189453]
[1721117218945,0.04047737,155.77,155.71,1.28421944]
[1721117219128,0.04047737,155.77,155.72,15.1594]
[1721117219542,0.04047737,155.77,155.73,46.28416035]
[1721117220324,0.04047737,155.77,155.73,1.28416035]
[1721117220664,0.04047737,155.77,155.72,53.1994]
[1721117221159,0.04047737,155.77,155.73,46.28409431]
[1721117222147,0.04047737,155.77,155.72,53.1994]
[1721117222342,0.04047737,155.77,155.72,15.1594]
[1721117222529,6.46017737,155.77,155.72,15.1594]
[1721117222731,6.46017737,155.77,155.7,6.1476]
[1721117223134,6.4202,155.76,155.7,6.1476]
[1721117223631,6.4205,155.75,155.7,6.1476]
[1721117223950,6.4205,155.76,155.7,6.1476]
[1721117224254,0.04047737,155.77,155.7,6.1476]
[1721117224934,6.46037737,155.77,155.7,6.1476]
[1721117225137,6.4201,155.76,155.7,6.1476]
[1721117225441,6.4201,155.76,155.68,16.6246]
[1721117225442,6.421,155.74,155.68,16.6246]
[1721117226153,6.4205,155.76,155.68,16.6246]
[1721117226648,0.04047737,155.77,155.68,16.6246]
[1721117226835,0.04047737,155.77,155.69,83.04]
[1721117227035,0.04047737,155.77,155.69,38.04]
[1721117227245,6.4219,155.72,155.66,6.2255]
[1721117227836,16.09017737,155.77,155.66,6.2255]
[1721117227837,6.4214,155.73,155.66,6.2255]
[1721117228045,6.4209,155.74,155.66,6.2255]
[1721117228559,20.0,155.73,155.66,6.2255]
[1721117228740,6.4221,155.72,155.66,6.2255]
[1721117228945,6.4222,155.71,155.66,6.2255]